fUSD/lending_fUSD_20260504
["ID","MTS","AMOUNT","RATE_DAILY","PERIOD"]
[421574217,1777905815000,-162.48539177,0.00021636,2]
[421574219,1777905815000,-188.98496807,0.00022,2]
[421574220,1777905815000,-168.0,0.00022,2]
[421574218,1777905815000,-188.98496807,0.000218,2]
[421574216,1777905815000,-188.98496807,0.000216,2]
[421574213,1777905815000,-156.0,0.00021,2]
[421574215,1777905815000,-222.0,0.00021303,2]
[421574214,1777905815000,-307.0,0.00021,2]
[421574212,1777905815000,-431.65,0.00020951,2]
[421574209,1777905815000,-307.0,0.0002,2]
[421574211,1777905815000,-467.84,0.00020951,2]
[421574208,1777905815000,-156.0,0.0002,2]
[421574210,1777905815000,-824.1,0.00020381,2]
[421574207,1777905815000,-1062.3422723,0.0002,2]
[421574206,1777905815000,-152.0,0.0002,2]
[421574204,1777905815000,-415.9686,0.000199,2]
[421574205,1777905815000,-1056.60302442,0.0002,2]
[421574225,1777905815000,-403.31,0.00022562,2]
[421574227,1777905815000,-307.0,0.00023,2]
[421574222,1777905815000,-188.98496807,0.000222,2]
[421574229,1777905815000,-376.0,0.0002327,2]
[421574250,1777905815000,-2610.9757064,0.00026796,2]
[421574248,1777905815000,-5530.0,0.000265,5]
[421574249,1777905815000,-6085.5488,0.00026796,2]
[421574247,1777905815000,-160.53,0.00026484,2]
[421574246,1777905815000,-160.39,0.00026484,30]
[421574226,1777905815000,-372.85,0.00022562,2]
[421574244,1777905815000,-150.0,0.0002594,2]
[421574243,1777905815000,-160.53,0.00025875,30]
[421574242,1777905815000,-5530.0,0.000256,3]
[421574240,1777905815000,-160.53,0.00025266,7]
[421574241,1777905815000,-160.39,0.00025571,7]
[421574245,1777905815000,-824.1,0.00026296,2]
[421574239,1777905815000,-325.95151982,0.00025,2]
[421574236,1777905815000,-160.39,0.00024658,2]
[421574237,1777905815000,-160.53,0.00024658,2]
[421574235,1777905815000,-824.1,0.00024324,2]
[421574233,1777905815000,-1000.0,0.00023937,2]
[421574234,1777905815000,-307.0,0.00024,2]
[421574231,1777905815000,-152.37,0.00023343,2]
[421574232,1777905815000,-500.0,0.00023574,2]
[421574228,1777905815000,-5000.0,0.00023224,2]
[421574230,1777905815000,-186.23,0.0002327,2]
[421574238,1777905815000,-49434.0,0.000248,2]
[421574262,1777905816000,-500.0,0.00026895,2]
[421574260,1777905816000,-233.60578647,0.00026895,2]
[421574258,1777905816000,-500.0,0.00026895,2]
[421574261,1777905816000,-500.0,0.00026895,2]
[421574259,1777905816000,-481.76668828,0.00026895,2]
[421574253,1777905816000,-3662.78121209,0.00026796,2]
[421574256,1777905816000,-291.48199123,0.00026895,2]
[421574254,1777905816000,-500.0,0.00026873,2]
[421574255,1777905816000,-500.0,0.00026895,2]
[421574252,1777905816000,-9598.0402899,0.00026796,2]
[421574251,1777905816000,-1081.0041169,0.00026796,2]
[421574263,1777905816000,-500.0,0.00026895,2]
[421574257,1777905816000,-164.54229181,0.00026895,2]
[421574265,1777905816000,-500.0,0.00026895,2]
[421574267,1777905816000,-500.0,0.00026895,2]
[421574269,1777905816000,-500.0,0.00026895,2]
[421574264,1777905816000,-250.54556763,0.00026895,2]
[421574279,1777905816000,-375286.16801517,0.00026896,2]
[421574277,1777905816000,-500.0,0.00026895,2]
[421574275,1777905816000,-500.0,0.00026895,2]
[421574276,1777905816000,-500.0,0.00026895,2]
[421574274,1777905816000,-176.109214,0.00026895,2]
[421574278,1777905816000,-500.0,0.00026895,2]
[421574272,1777905816000,-500.0,0.00026895,2]
[421574270,1777905816000,-500.0,0.00026895,2]
[421574271,1777905816000,-500.0,0.00026895,2]
[421574268,1777905816000,-500.0,0.00026895,2]
[421574266,1777905816000,-500.0,0.00026895,2]
[421574273,1777905816000,-2317.31426788,0.00026895,2]
[421574283,1777906079000,203.245036,0.00029596,120]
[421574286,1777906141000,924.575728,0.00029549,120]
[421574295,1777906161000,-159.67,0.00029137,30]
[421574293,1777906161000,-500.0,0.00028881,60]
[421574291,1777906161000,-159.67,0.00028849,30]
[421574290,1777906161000,-500.0,0.00028788,60]
[421574287,1777906161000,-152.41,0.00025753,30]
[421574289,1777906161000,-159.33,0.00025875,30]
[421574288,1777906161000,-157.69,0.00025875,30]
[421574292,1777906161000,-151.74,0.00028851,30]
[421574297,1777906161000,-156.0,0.00031185,30]
[421574294,1777906161000,-151.74,0.00029137,30]
[421574298,1777906161000,-159.0,0.00031185,30]
[421574296,1777906161000,-1321.82,0.000301,30]
[421574306,1777906161000,-219.72,0.00031235,120]
[421574305,1777906161000,-406.490071,0.00031194,120]
[421574304,1777906161000,-160.0,0.00031186,30]
[421574307,1777906161000,-156.0,0.00032185,30]
[421574302,1777906161000,-307.0,0.00031185,30]
[421574301,1777906161000,-156.0,0.00031185,30]
[421574300,1777906161000,-155.0,0.00031185,30]
[421574299,1777906161000,-155.0,0.00031185,30]
[421574303,1777906161000,-155.0,0.00031186,30]
[421574320,1777906162000,-307.0,0.00033185,30]
[421574323,1777906162000,-155.0,0.00034185,30]
[421574324,1777906162000,-156.0,0.00034185,30]
[421574322,1777906162000,-156.0,0.00034185,30]
[421574321,1777906162000,-290.9755288,0.00033918,60]
[421574319,1777906162000,-156.0,0.00033185,30]
[421574325,1777906162000,-307.0,0.00034185,30]
[421574317,1777906162000,-156.0,0.00033185,30]
[421574312,1777906162000,-307.0,0.00032185,30]
[421574314,1777906162000,-886.0,0.00032835,30]
[421574315,1777906162000,-492.0,0.00033165,30]
[421574313,1777906162000,-1122.806,0.00032411,32]
[421574310,1777906162000,-155.0,0.00032185,30]
[421574311,1777906162000,-156.0,0.00032185,30]
[421574309,1777906162000,-157.0,0.00032185,30]
[421574308,1777906162000,-167.0,0.00032185,30]
[421574316,1777906162000,-714.0,0.00033165,30]
[421574327,1777906162000,-219.72,0.00034358,120]
[421574318,1777906162000,-155.0,0.00033185,30]
[421574326,1777906162000,-467.0,0.00034233,30]
[421574346,1777906162000,-165.4113931,0.00037185,30]
[421574344,1777906162000,-708.32,0.00037,30]
[421574345,1777906162000,-156.0,0.00037185,30]
[421574342,1777906162000,-467.0,0.00036247,30]
[421574343,1777906162000,-500.0,0.00036613,35]
[421574341,1777906162000,-307.0,0.00036185,30]
[421574340,1777906162000,-156.0,0.00036185,30]
[421574339,1777906162000,-156.0,0.00036185,30]
[421574337,1777906162000,-412.0,0.00036153,30]
[421574328,1777906162000,-467.0,0.00034521,30]
[421574336,1777906162000,-223.71,0.00036132,30]
[421574335,1777906162000,-241.99,0.00036132,30]
[421574334,1777906162000,-1895.51,0.00036132,30]
[421574333,1777906162000,-500.0,0.00035547,30]
[421574332,1777906162000,-307.0,0.00035185,30]
[421574331,1777906162000,-156.0,0.00035185,30]
[421574330,1777906162000,-156.54222813,0.00035185,30]
[421574329,1777906162000,-156.0,0.00035185,30]
[421574338,1777906162000,-150.0,0.00036173,30]
[421574358,1777906163000,-708.32,0.00038,30]
[421574359,1777906163000,-168.62,0.00038034,30]
[421574363,1777906163000,-150.0,0.00038182,120]
[421574360,1777906163000,-412.0,0.00038125,30]
[421574362,1777906163000,-290.9755288,0.00038148,120]
[421574356,1777906163000,-154.22983649,0.0003762,120]
[421574361,1777906163000,-298.0316734,0.00038148,120]
[421574357,1777906163000,-501.40628083,0.00037711,41]
[421574351,1777906163000,-566.82172805,0.00037415,120]
[421574352,1777906163000,-1060.86477171,0.00037429,30]
[421574354,1777906163000,-385.81,0.0003759,120]
[421574353,1777906163000,-219.72,0.00037482,120]
[421574350,1777906163000,-160.0,0.00037374,120]
[421574348,1777906163000,-190.53878735,0.000372,120]
[421574349,1777906163000,-2953.3312834,0.00037241,120]
[421574347,1777906163000,-307.0,0.00037185,30]
[421574364,1777906163000,-708.32,0.000382,30]
[421574355,1777906163000,-158.41978194,0.0003762,120]
[421574366,1777906163000,-156.72097657,0.00038394,120]
[421574365,1777906163000,-9088.58010325,0.00038394,120]
[421574367,1777906163000,-826.23455484,0.00038394,120]
[421574386,1777906163000,-208.166904,0.000387,30]
[421574383,1777906163000,-220.08236,0.000387,30]
[421574384,1777906163000,-220.08236,0.000387,30]
[421574381,1777906163000,-220.08236,0.000387,30]
[421574382,1777906163000,-220.08236,0.000387,30]
[421574380,1777906163000,-178.06721591,0.000387,120]
[421574379,1777906163000,-500.0,0.00038699,60]
[421574377,1777906163000,-220.08236,0.00038692,30]
[421574378,1777906163000,-1157.22138105,0.00038699,30]
[421574385,1777906163000,-208.166904,0.000387,30]
[421574375,1777906163000,-220.08236,0.00038692,30]
[421574376,1777906163000,-220.08236,0.00038692,30]
[421574374,1777906163000,-220.08236,0.00038692,30]
[421574372,1777906163000,-826.23455484,0.00038668,120]
[421574371,1777906163000,-156.72097657,0.00038668,120]
[421574370,1777906163000,-9088.58010325,0.00038668,120]
[421574369,1777906163000,-168261.54817803,0.00038599,45]
[421574368,1777906163000,-156.72097653,0.00038394,120]
[421574373,1777906163000,-151.0,0.00038692,30]
[421574397,1777906164000,-151.0,0.000387,30]
[421574400,1777906164000,-826.23455484,0.00038942,120]
[421574404,1777906164000,-826.23455484,0.00039216,120]
[421574401,1777906164000,-230.31356951,0.00039007,105]
[421574402,1777906164000,-9088.58010325,0.00039216,120]
[421574398,1777906164000,-9088.58010325,0.00038942,120]
[421574399,1777906164000,-156.72097657,0.00038942,120]
[421574396,1777906164000,-151.0,0.000387,30]
[421574391,1777906164000,-171.557835,0.000387,30]
[421574393,1777906164000,-708.32,0.000387,30]
[421574394,1777906164000,-151.0,0.000387,30]
[421574392,1777906164000,-171.557843,0.000387,30]
[421574390,1777906164000,-171.557835,0.000387,30]
[421574389,1777906164000,-171.557835,0.000387,30]
[421574387,1777906164000,-208.166904,0.000387,30]
[421574388,1777906164000,-208.166913,0.000387,30]
[421574403,1777906164000,-156.72097657,0.00039216,120]
[421574395,1777906164000,-151.0,0.000387,30]
[421574406,1777906164000,-151.53470817,0.00039311,106]
[421574405,1777906164000,-1530.480277,0.000393,120]
[421574426,1777906164000,-1170.36,0.00039938,30]
[421574427,1777906164000,-500.0,0.00039999,31]
[421574424,1777906164000,-500.0,0.00039879,60]
[421574425,1777906164000,-898.41,0.000399,30]
[421574422,1777906164000,-150.0,0.0003982,30]
[421574423,1777906164000,-280.0,0.0003982,30]
[421574420,1777906164000,-156.72097657,0.00039764,120]
[421574421,1777906164000,-826.23455484,0.00039764,120]
[421574419,1777906164000,-9088.58010325,0.00039764,120]
[421574418,1777906164000,-624.9,0.000397,30]
[421574407,1777906164000,-1087.2514987,0.000394,120]
[421574416,1777906164000,-151.0,0.000395,30]
[421574414,1777906164000,-151.0,0.000395,30]
[421574417,1777906164000,-624.9,0.000397,60]
[421574413,1777906164000,-66439.0,0.000395,120]
[421574412,1777906164000,-826.23455484,0.0003949,120]
[421574410,1777906164000,-9088.58010325,0.0003949,120]
[421574411,1777906164000,-156.72097657,0.0003949,120]
[421574409,1777906164000,-708.32,0.000394,30]
[421574408,1777906164000,-1825.86322997,0.000394,120]
[421574415,1777906164000,-151.0,0.000395,30]
[421574441,1777906165000,-150.0,0.00040192,120]
[421574440,1777906165000,-708.32,0.000401,30]
[421574439,1777906165000,-826.23455484,0.00040038,120]
[421574445,1777906165000,-9088.58010325,0.00040312,120]
[421574443,1777906165000,-500.0,0.0004027,60]
[421574444,1777906165000,-898.41,0.000403,30]
[421574438,1777906165000,-156.72097657,0.00040038,120]
[421574442,1777906165000,-1250.60594701,0.000402,30]
[421574436,1777906165000,-2000.0,0.0004,120]
[421574430,1777906165000,-187.2366818,0.00039999,31]
[421574434,1777906165000,-200.0,0.0004,120]
[421574435,1777906165000,-802.0,0.0004,120]
[421574433,1777906165000,-1077.60817284,0.0004,62]
[421574432,1777906165000,-7017.74892741,0.0004,120]
[421574431,1777906165000,-10700.0,0.0004,60]
[421574429,1777906165000,-554.03739386,0.00039999,31]
[421574428,1777906165000,-163.52405053,0.00039999,31]
[421574446,1777906165000,-156.72097657,0.00040312,120]
[421574437,1777906165000,-9088.58010325,0.00040038,120]
[421574448,1777906165000,-281.02,0.00040419,120]
[421574453,1777906165000,-9088.58010325,0.00040586,120]
[421574447,1777906165000,-826.23455484,0.00040312,120]
[421574468,1777906165000,-154.54207397,0.00041063,60]
[421574467,1777906165000,-1141.4,0.00041041,120]
[421574463,1777906165000,-117372.0,0.0004095,60]
[421574466,1777906165000,-1302.67898693,0.00041,30]
[421574464,1777906165000,-162.0,0.0004095,60]
[421574449,1777906165000,-403.31,0.00040419,120]
[421574462,1777906165000,-826.23455484,0.0004086,120]
[421574460,1777906165000,-9088.58010325,0.0004086,120]
[421574461,1777906165000,-156.72097657,0.0004086,120]
[421574465,1777906165000,-9341.00230429,0.00041,30]
[421574458,1777906165000,-898.41,0.000407,30]
[421574459,1777906165000,-742.4346,0.00040823,30]
[421574451,1777906165000,-248.59602427,0.00040441,111]
[421574452,1777906165000,-1530.480277,0.000405,120]
[421574450,1777906165000,-12401.23990232,0.00040429,70]
[421574455,1777906165000,-826.23455484,0.00040586,120]
[421574456,1777906165000,-1087.2514987,0.000406,120]
[421574457,1777906165000,-1825.86322997,0.000406,120]
[421574454,1777906165000,-156.72097657,0.00040586,120]
[421574479,1777906166000,-786.60661,0.00041096,120]
[421574487,1777906166000,-786.60661,0.00041096,120]
[421574484,1777906166000,-786.60661,0.00041096,120]
[421574485,1777906166000,-786.60661,0.00041096,120]
[421574481,1777906166000,-786.60661,0.00041096,120]
[421574482,1777906166000,-786.60661,0.00041096,120]
[421574483,1777906166000,-786.60661,0.00041096,120]
[421574480,1777906166000,-786.60661,0.00041096,120]
[421574478,1777906166000,-786.60661,0.00041096,120]
[421574488,1777906166000,-786.60661,0.00041096,120]
[421574477,1777906166000,-786.60661,0.00041096,120]
[421574474,1777906166000,-786.60661,0.00041096,120]
[421574475,1777906166000,-786.60661,0.00041096,120]
[421574473,1777906166000,-786.60661,0.00041096,120]
[421574472,1777906166000,-786.60661,0.00041096,120]
[421574471,1777906166000,-448.51026919,0.00041095,60]
[421574469,1777906166000,-565.11233766,0.00041078,60]
[421574470,1777906166000,-500.0,0.00041095,120]
[421574476,1777906166000,-786.60661,0.00041096,120]
[421574486,1777906166000,-786.60661,0.00041096,120]
[421574507,1777906166000,-962.72557,0.00041096,120]
[421574491,1777906166000,-786.60662,0.00041096,120]
[421574510,1777906166000,-962.72557,0.00041096,120]
[421574508,1777906166000,-962.72557,0.00041096,120]
[421574509,1777906166000,-962.72557,0.00041096,120]
[421574506,1777906166000,-962.72557,0.00041096,120]
[421574505,1777906166000,-962.72557,0.00041096,120]
[421574504,1777906166000,-962.72557,0.00041096,120]
[421574503,1777906166000,-962.72557,0.00041096,120]
[421574502,1777906166000,-962.72557,0.00041096,120]
[421574500,1777906166000,-962.72557,0.00041096,120]
[421574489,1777906166000,-786.60661,0.00041096,120]
[421574497,1777906166000,-962.72557,0.00041096,120]
[421574498,1777906166000,-962.72557,0.00041096,120]
[421574501,1777906166000,-962.72557,0.00041096,120]
[421574496,1777906166000,-962.72557,0.00041096,120]
[421574493,1777906166000,-962.72557,0.00041096,120]
[421574495,1777906166000,-962.72557,0.00041096,120]
[421574494,1777906166000,-962.72557,0.00041096,120]
[421574492,1777906166000,-962.72557,0.00041096,120]
[421574490,1777906166000,-786.60661,0.00041096,120]
[421574499,1777906166000,-962.72557,0.00041096,120]
[421574520,1777906167000,-403.067991,0.00041096,120]
[421574523,1777906167000,-403.067991,0.00041096,120]
[421574525,1777906167000,-403.067991,0.00041096,120]
[421574529,1777906167000,-403.067991,0.00041096,120]
[421574526,1777906167000,-403.067991,0.00041096,120]
[421574524,1777906167000,-403.067991,0.00041096,120]
[421574521,1777906167000,-403.067991,0.00041096,120]
[421574527,1777906167000,-403.067991,0.00041096,120]
[421574519,1777906167000,-403.067991,0.00041096,120]
[421574515,1777906167000,-403.067991,0.00041096,120]
[421574516,1777906167000,-403.067991,0.00041096,120]
[421574517,1777906167000,-403.067991,0.00041096,120]
[421574518,1777906167000,-403.067991,0.00041096,120]
[421574513,1777906167000,-403.067991,0.00041096,120]
[421574512,1777906167000,-403.067991,0.00041096,120]
[421574514,1777906167000,-403.067991,0.00041096,120]
[421574511,1777906167000,-962.725561,0.00041096,120]
[421574530,1777906167000,-403.067991,0.00041096,120]
[421574522,1777906167000,-403.067991,0.00041096,120]
[421574531,1777906167000,-403.067984,0.00041096,120]
[421574528,1777906167000,-403.067991,0.00041096,120]
[421574532,1777906167000,-157.800893,0.00041096,120]
[421574550,1777906167000,-157.800893,0.00041096,120]
[421574549,1777906167000,-157.800893,0.00041096,120]
[421574548,1777906167000,-157.800893,0.00041096,120]
[421574547,1777906167000,-157.800893,0.00041096,120]
[421574546,1777906167000,-157.800893,0.00041096,120]
[421574545,1777906167000,-157.800893,0.00041096,120]
[421574544,1777906167000,-157.800893,0.00041096,120]
[421574543,1777906167000,-157.800893,0.00041096,120]
[421574542,1777906167000,-157.800893,0.00041096,120]
[421574551,1777906167000,-157.80089,0.00041096,120]
[421574540,1777906167000,-157.800893,0.00041096,120]
[421574538,1777906167000,-157.800893,0.00041096,120]
[421574539,1777906167000,-157.800893,0.00041096,120]
[421574537,1777906167000,-157.800893,0.00041096,120]
[421574533,1777906167000,-157.800893,0.00041096,120]
[421574534,1777906167000,-157.800893,0.00041096,120]
[421574536,1777906167000,-157.800893,0.00041096,120]
[421574535,1777906167000,-157.800893,0.00041096,120]
[421574541,1777906167000,-157.800893,0.00041096,120]
[421574563,1777906168000,-150.0,0.00041291,30]
[421574566,1777906168000,-2000.0,0.00041409,120]
[421574567,1777906168000,-301.56927693,0.00041441,60]
[421574569,1777906168000,-154.54207398,0.00041511,60]
[421574565,1777906168000,-300.0,0.000414,120]
[421574568,1777906168000,-1000.0,0.000415,30]
[421574562,1777906168000,-3851.6042083,0.00041291,30]
[421574564,1777906168000,-466.38939592,0.00041291,30]
[421574561,1777906168000,-150.0,0.00041291,30]
[421574558,1777906168000,-1634.61,0.000411,120]
[421574556,1777906168000,-500000.0,0.000411,120]
[421574559,1777906168000,-826.23455484,0.00041134,120]
[421574557,1777906168000,-282665.86,0.000411,120]
[421574555,1777906168000,-500000.0,0.000411,120]
[421574553,1777906168000,-151.0,0.00041096,120]
[421574554,1777906168000,-258.635847,0.00041096,120]
[421574552,1777906168000,-151.0,0.00041096,120]
[421574570,1777906168000,-150.0,0.00041558,120]
[421574560,1777906168000,-200.0,0.00041181,120]
[421574571,1777906168000,-500.0,0.0004157,120]
[421574592,1777906168000,-50000.0,0.0004197,120]
[421574572,1777906168000,-438.64,0.00041584,120]
[421574573,1777906168000,-2000.0,0.00041676,120]
[421574591,1777906168000,-50000.0,0.0004196,120]
[421574589,1777906168000,-50000.0,0.0004195,120]
[421574590,1777906168000,-3787.50610123,0.0004195,120]
[421574587,1777906168000,-50000.0,0.0004194,120]
[421574585,1777906168000,-50000.0,0.0004192,120]
[421574586,1777906168000,-50000.0,0.0004193,120]
[421574584,1777906168000,-198.27776544,0.000419,120]
[421574583,1777906168000,-50000.0,0.000419,120]
[421574588,1777906168000,-18899.17377445,0.0004195,120]
[421574582,1777906168000,-50000.0,0.000419,120]
[421574581,1777906168000,-1000.0,0.0004189,120]
[421574574,1777906168000,-1141.4,0.00041694,120]
[421574576,1777906168000,-2118.76196131,0.00041764,120]
[421574577,1777906168000,-1087.2514987,0.000418,120]
[421574575,1777906168000,-1530.480277,0.000417,120]
[421574580,1777906168000,-16960.10852182,0.00041875,120]
[421574579,1777906168000,-1006.76,0.000418,120]
[421574578,1777906168000,-1825.86322997,0.000418,120]
[421574603,1777906169000,-1000.0,0.00042,30]
[421574610,1777906169000,-50000.0,0.0004211,120]
[421574612,1777906169000,-5000.0,0.00042141,30]
[421574609,1777906169000,-50000.0,0.000421,120]
[421574608,1777906169000,-547.67142571,0.00042,120]
[421574606,1777906169000,-898.41,0.00042,30]
[421574607,1777906169000,-1301.0,0.00042,30]
[421574604,1777906169000,-9826.431649,0.00042,120]
[421574605,1777906169000,-21351.58195867,0.00042,120]
[421574593,1777906169000,-50000.0,0.0004198,120]
[421574601,1777906169000,-2000.0,0.00042,120]
[421574600,1777906169000,-7812.85283988,0.00042,120]
[421574598,1777906169000,-500.0,0.00042,120]
[421574599,1777906169000,-600.0,0.00042,120]
[421574597,1777906169000,-100222.93261943,0.00042,31]
[421574596,1777906169000,-300.0,0.00042,45]
[421574595,1777906169000,-50000.0,0.0004199,120]
[421574594,1777906169000,-20000.0,0.0004198,30]
[421574602,1777906169000,-675.57480299,0.00042,120]
[421574611,1777906169000,-9999.999998,0.0004212,120]
[421574616,1777906169000,-160.0,0.0004219,60]
[421574613,1777906169000,-10000.0,0.00042141,30]
[421574634,1777906169000,-500.0,0.00042191,60]
[421574633,1777906169000,-503.68870998,0.00042191,60]
[421574631,1777906169000,-500.0,0.00042191,60]
[421574632,1777906169000,-500.0,0.00042191,60]
[421574630,1777906169000,-500.0,0.00042191,60]
[421574629,1777906169000,-500.0,0.00042191,60]
[421574627,1777906169000,-520.42406298,0.00042191,60]
[421574628,1777906169000,-500.0,0.00042191,60]
[421574623,1777906169000,-500.89079442,0.00042191,60]
[421574614,1777906169000,-20335.42815375,0.0004218,35]
[421574625,1777906169000,-500.0,0.00042191,60]
[421574624,1777906169000,-500.0,0.00042191,60]
[421574621,1777906169000,-424.02873268,0.00042191,60]
[421574622,1777906169000,-500.0,0.00042191,60]
[421574620,1777906169000,-160.0,0.0004219,60]
[421574619,1777906169000,-997.83110456,0.0004219,60]
[421574618,1777906169000,-160.0,0.0004219,60]
[421574617,1777906169000,-160.0,0.0004219,60]
[421574615,1777906169000,-320.0,0.0004219,60]
[421574626,1777906169000,-630.18503592,0.00042191,60]
[421574647,1777906170000,-503.20734338,0.00042191,60]
[421574650,1777906170000,-503.17578542,0.00042191,60]
[421574649,1777906170000,-528.39826246,0.00042191,60]
[421574653,1777906170000,-500.0,0.00042191,60]
[421574651,1777906170000,-500.0,0.00042191,60]
[421574652,1777906170000,-500.0,0.00042191,60]
[421574646,1777906170000,-500.0,0.00042191,60]
[421574648,1777906170000,-500.0,0.00042191,60]
[421574645,1777906170000,-500.0,0.00042191,60]
[421574640,1777906170000,-500.0,0.00042191,60]
[421574641,1777906170000,-507.08263091,0.00042191,45]
[421574642,1777906170000,-500.0,0.00042191,60]
[421574643,1777906170000,-500.0,0.00042191,60]
[421574639,1777906170000,-500.0,0.00042191,60]
[421574638,1777906170000,-500.0,0.00042191,60]
[421574636,1777906170000,-500.0,0.00042191,60]
[421574637,1777906170000,-500.0,0.00042191,60]
[421574654,1777906170000,-500.0,0.00042191,60]
[421574644,1777906170000,-502.63972154,0.00042191,60]
[421574655,1777906170000,-501.21222428,0.00042191,60]
[421574635,1777906170000,-500.0,0.00042191,60]
[421574657,1777906170000,-501.38286214,0.00042191,60]
[421574676,1777906170000,-500.0,0.00042191,60]
[421574674,1777906170000,-500.0,0.00042191,60]
[421574675,1777906170000,-500.0,0.00042191,60]
[421574673,1777906170000,-500.0,0.00042191,60]
[421574672,1777906170000,-500.0,0.00042191,60]
[421574670,1777906170000,-500.0,0.00042191,60]
[421574671,1777906170000,-570.71425,0.00042191,60]
[421574669,1777906170000,-500.0,0.00042191,60]
[421574668,1777906170000,-500.0,0.00042191,60]
[421574677,1777906170000,-500.0,0.00042191,60]
[421574666,1777906170000,-514.6575332,0.00042191,60]
[421574667,1777906170000,-501.63731978,0.00042191,60]
[421574658,1777906170000,-502.29973729,0.00042191,60]
[421574660,1777906170000,-501.3335488,0.00042191,60]
[421574659,1777906170000,-502.34868009,0.00042191,60]
[421574656,1777906170000,-494.36005185,0.00042191,60]
[421574661,1777906170000,-474.97754632,0.00042191,60]
[421574664,1777906170000,-500.0,0.00042191,60]
[421574663,1777906170000,-500.99554117,0.00042191,60]
[421574665,1777906170000,-501.96531647,0.00042191,60]
[421574662,1777906170000,-500.76831993,0.00042191,60]
[421574697,1777906171000,-2486.78,0.00042191,60]
[421574694,1777906171000,-2486.78,0.00042191,60]
[421574695,1777906171000,-2486.78,0.00042191,60]
[421574693,1777906171000,-2486.78,0.00042191,60]
[421574691,1777906171000,-500.0,0.00042191,60]
[421574692,1777906171000,-505.74412106,0.00042191,60]
[421574690,1777906171000,-500.0,0.00042191,60]
[421574689,1777906171000,-329.06,0.00042191,60]
[421574687,1777906171000,-500.0,0.00042191,60]
[421574683,1777906171000,-500.0,0.00042191,60]
[421574685,1777906171000,-500.0,0.00042191,60]
[421574686,1777906171000,-286.21092095,0.00042191,60]
[421574681,1777906171000,-500.0,0.00042191,60]
[421574682,1777906171000,-500.0,0.00042191,60]
[421574680,1777906171000,-500.0,0.00042191,60]
[421574679,1777906171000,-500.0,0.00042191,60]
[421574678,1777906171000,-500.0,0.00042191,60]
[421574699,1777906171000,-2486.78,0.00042191,60]
[421574688,1777906171000,-500.0,0.00042191,60]
[421574684,1777906171000,-500.0,0.00042191,60]
[421574696,1777906171000,-2486.78,0.00042191,60]
[421574701,1777906171000,-2486.78,0.00042191,60]
[421574698,1777906171000,-2486.78,0.00042191,60]
[421574718,1777906171000,-500.0,0.00042191,60]
[421574717,1777906171000,-602.40154246,0.00042191,60]
[421574715,1777906171000,-500.0,0.00042191,60]
[421574716,1777906171000,-346.34,0.00042191,60]
[421574714,1777906171000,-500.0,0.00042191,60]
[421574713,1777906171000,-500.0,0.00042191,60]
[421574711,1777906171000,-2486.78,0.00042191,60]
[421574710,1777906171000,-500.0,0.00042191,60]
[421574719,1777906171000,-500.0,0.00042191,60]
[421574712,1777906171000,-500.0,0.00042191,60]
[421574709,1777906171000,-2486.78,0.00042191,60]